Cogmind - Beta 16.1 @@@ ROGUE MODE // 2026.04.13 @ 09:21:17 Player: Lazz Result: Destroyed by B-86 Titan with Railgun Performance ------------- Evolutions (6) 3000 Regions Visited (8) 1600 Robots Destroyed (22) 110 Value Destroyed (432) 432 Prototype IDs (7) 140 Alien Tech Used (0) 0 Bonus (1300) 1300 TOTAL SCORE: 6582 Bonus ------- Entered DSFs 500 Registered with UFD 300 Met Optimus in HQ 500 Cogmind --------- Core Integrity 0/1150 Matter 79/300 Energy 99/100 System Corruption 4% Temperature Cool (2) Movement Hovering (40) Location -4/Upper Caves Parts ------- > --- POWER (3) -------- (None) > --- PROPULSION (5) --- Linear Gravjet > --- UTILITY (9) ------ Enhanced Optical Array Improved Signal Interpreter Advanced Targeting Computer Jamming Amplifier > --- WEAPON (2) ------- (None) > --- INVENTORY (5) ---- Makeshift Leg Enhanced Optical Array Makeshift Hacking Suite Advanced Drone Bay (2/2) Peak State ------------ > --- POWER ------------ Improved Deuterium Engine Angular Momentum Engine > --- PROPULSION ------- Wheel > --- UTILITY ---------- Large Storage Unit Improved Terrain Scanner Improved Hacking Suite Improved Hacking Suite Improved Hacking Suite Improved Hacking Suite > --- WEAPON ----------- Gauss Rifle Flak Gun > --- INVENTORY -------- Light Ion Engine Small Matter Pod Sensor Array Signal Interpreter Barrage Gun Heavy Rocket Launcher Heavy Hammer [Rating: 43] Favorites ----------- Power Angular Momentum Engine Engine Angular Momentum Engine Power Core Micro Nuclear Core Propulsion Aluminum Leg Leg Aluminum Leg Wheel Wheel Hover Unit Improved Linear Gravjet Flight Unit VTOL Module Utility Large Storage Unit Device Seismic Detector Storage Large Storage Unit Processor Improved Signal Interpreter Hackware Improved Hacking Suite Weapon Assault Rifle Ballistic Gun Assault Rifle Special Weapon Improved Plasma Cutter Impact Weapon Heavy Hammer Build | -11 -10 -10 -9 -6 -5 -5 -4 -4 ------- Run | Yrd Mat Sub Scr Fac Fac DSF Fac Upp Slots Evolved 12 | . . . . 8 2 . 2 . Power 2 | . . . . 1 . . 1 . Propulsion 3 | . . . . 2 . . 1 . Utility 7 | . . . . 5 2 . . . Weapon . | . . . . . . . . . Parts Attached 49 | 7 3 . 3 20 4 3 8 1 Power 5 | 1 . . 1 1 1 . 1 . Engine 4 | 1 . . 1 1 1 . . . Core 1 | . . . . . . . 1 . Reactor . | . . . . . . . . . Propulsion 10 | 2 . . . 6 . . 2 . Treads . | . . . . . . . . . Leg 3 | 2 . . . 1 . . . . Wheel 4 | . . . . 4 . . . . Hover 2 | . . . . . . . 2 . Flight 1 | . . . . 1 . . . . Utility 23 | 2 1 . . 9 3 3 4 1 Device 8 | 1 . . . 3 2 . 2 . Storage 3 | 1 1 . . . 1 . . . Processor 5 | . . . . 2 . . 2 1 Hackware 7 | . . . . 4 . 3 . . Protection . | . . . . . . . . . Artifact . | . . . . . . . . . Weapon 11 | 2 2 . 2 4 . . 1 . Energy Gun . | . . . . . . . . . Energy Cannon . | . . . . . . . . . Ballistic Gun 8 | 2 1 . 2 3 . . . . Ballistic Cannon . | . . . . . . . . . Launcher . | . . . . . . . . . Special Weapon 2 | . 1 . . . . . 1 . Impact Weapon 1 | . . . . 1 . . . . Slashing Weapon . | . . . . . . . . . Piercing Weapon . | . . . . . . . . . Special Melee Weapon . | . . . . . . . . . Unidentified Prototypes 1 | . . . . . 1 . . . Parts Lost 31 | . . . . 17 . 2 12 . Power 3 | . . . . 2 . . 1 . Propulsion 9 | . . . . 6 . 2 1 . Utility 13 | . . . . 5 . . 8 . Weapon 6 | . . . . 4 . . 2 . Highest Loss Streak 8 | . . . . 7 . 2 8 . To Critical Strikes 1 | . . . . 1 . . . . Average Backups 9 | 2 7 8 14 7 4 5 2 2 Power . | . . . . . 1 1 . . Propulsion . | . 1 1 1 . . . . . Utility 4 | . 4 5 6 3 2 1 . 1 Weapon 3 | 1 2 2 6 2 . 1 . . Tool/Special . | . . . . . . . . . Unused Backups 17 | . 2 . 5 3 . 2 1 4 Power . | . . . . . . . . . Propulsion 2 | . . . . . . . 1 1 Utility 10 | . 2 . 2 2 . 1 . 3 Weapon 5 | . . . 3 1 . 1 . . Tool/Special . | . . . . . . . . . Average Slot Usage (%) 82 | . 100 100 99 73 60 38 34 23 Engine 10 | . 14 14 14 8 2 1 . . Leg 18 | . 28 28 28 4 5 1 . . Wheel 2 | . . . . 9 . . . . Device 11 | . 14 14 14 8 11 5 5 . Storage 9 | . 14 14 14 2 3 1 . . Processor 4 | . . . . 7 11 11 15 17 Hackware 4 | . . . . 15 5 11 5 . Ballistic Gun 18 | . 26 28 27 8 5 . . . Impact Weapon 1 | . . . . 3 5 1 2 . Peak Build Rating 43 | 7 8 8 19 43 38 35 41 24 Average Rating 19 | 5 7 8 13 33 32 21 25 20 On Entrance 15 | . 7 8 8 19 23 38 22 17 Avg Prop Armor Cover (%) 7 | . . . . 9 3 4 . . Naked Turns . | . . . . . . . . . Heaviest Build 52 | 13 28 28 40 52 23 20 26 . Greatest Support 30 | 20 20 20 20 30 20 20 10 9 Greatest Overweight (x) 14 | . 1 1 1 14 1 . 5 . Average Overweight (x) . | . . 1 1 2 . . . . Largest Inventory Capacity 15 | 8 15 15 15 15 8 8 5 5 Average Capacity 11 | 7 9 15 15 9 7 5 5 5 Most Carried 15 | 6 8 9 15 14 5 6 5 5 Average Carried 9 | 2 7 8 14 7 4 5 2 2 Final Capacity 15 | 8 15 15 15 5 8 5 5 5 Final Carried 15 | 6 8 9 15 3 5 5 1 5 Class Distribution -------------------- 82% | Mutant 6% | Hacker-Assassin 6% | Hacker-Mutant Dominant Class ---------------- Mutant | -10/Materials Mutant | -10/Subcaves Mutant | -9/Scraptown Hacker-Assassin | -6/Factory Mutant | -5/Factory Mutant | -5/DSF Mutant | -4/Factory Mutant | -4/Upper Caves Resources | -11 -10 -10 -9 -6 -5 -5 -4 -4 ----------- Run | Yrd Mat Sub Scr Fac Fac DSF Fac Upp Matter Collected 781 | 410 26 10 10 180 11 . 87 47 Remotely . | . . . . . . . . . Salvage Created 567 | 214 . . . 255 11 . 87 . Parts 29 | 13 . . . 15 . . 1 . Haulers Intercepted . | . . . . . . . . . Recyclers Shooed 2 | . . . . 1 . . 1 . Parts Field Recycled . | . . . . . . . . . Retrieved Matter . | . . . . . . . . . Parts Self-Destructed 12 | . . 12 . . . . . . Prevented . | . . . . . . . . . Parts Restored . | . . . . . . . . . Kills | -11 -10 -10 -9 -6 -5 -5 -4 -4 ------- Run | Yrd Mat Sub Scr Fac Fac DSF Fac Upp Combat Hostiles Destroyed 11 | . . . . 7 . . 4 . Melee 2 | . . . . . . . 2 . Guns 7 | . . . . 7 . . . . Classes Destroyed 6 | 3 . . . 3 . . . . Worker 3 | 2 . . . . 1 . . . Builder 3 | . . . . 3 . . . . Tunneler 4 | 4 . . . . . . . . Recycler 1 | 1 . . . . . . . . Swarmer 10 | . . . . 6 . . 4 . Duelist 1 | . . . . 1 . . . . Best Kill Streak 5 | 5 . . . 4 1 . 4 . Combat Bots Only 4 | . . . . 4 . . 4 . Max Kills in Single Turn 2 | 1 . . . 2 1 . 1 . Gunslinging 1 | . . . . 1 . . . . Exploded . | . . . . . . . . . Melee 1 | . . . . . . . 1 . Uniques/NPCs Destroyed . | . . . . . . . . . Combat | -11 -10 -10 -9 -6 -5 -5 -4 -4 -------- Run | Yrd Mat Sub Scr Fac Fac DSF Fac Upp Hostile Shots Fired 348 | . . . . 149 . 43 147 9 Missed 124 | . . . . 53 . 16 50 5 Hits 224 | . . . . 96 . 27 97 4 Melee 8 | . . . . 8 . . . . Projectile 216 | . . . . 88 . 27 97 4 AOE 2 | . . . . . . . 2 . Critical Strikes 7 | . . . . 4 . . 3 . Damage Taken 4164 | . . . . 1649 . 676 1751 88 Core 2146 | . . . . 411 . 571 1092 72 Absorbed by Shields . | . . . . . . . . . Core Remaining (%) 73 | 100 . . 100 51 . 42 . . Volleys Fired 48 | 15 2 . . 29 . . 2 . Largest 2 | 2 2 . . 2 . . 1 . Hottest 100 | 40 100 . . 56 . . 20 . Shots Fired 87 | 30 3 . . 52 . . 2 . Gun 84 | 30 2 . . 52 . . . . Cannon . | . . . . . . . . . Launcher . | . . . . . . . . . Special 3 | . 1 . . . . . 2 . Kinetic 84 | 30 2 . . 52 . . . . Thermal 3 | . 1 . . . . . 2 . Explosive . | . . . . . . . . . Electromagnetic . | . . . . . . . . . Robot Hit Streak 7 | 4 . . . 7 . . 7 . Robot Miss Streak 7 | 2 2 . . 7 . . . . Penetration Max . | . . . . . . . . . Secondary Targets 4 | . . . . 4 . . . . Max Gunslinging Chain 1 | . . . . 1 . . . . Shots Hit Robots 66 | 16 . . . 40 1 . 9 . Core Hits 34 | 8 . . . 24 . . 2 . Critical Kills . | . . . . . . . . . Critical Parts Destroyed 3 | . . . . 1 . . 2 . Critical Strikes 3 | . . . . 1 . . 2 . Smash 3 | . . . . 1 . . 2 . Melee Attacks 23 | . . . . 13 1 . 9 . Impact 23 | . . . . 13 1 . 9 . Slashing . | . . . . . . . . . Piercing . | . . . . . . . . . Sneak Attacks 3 | . . . . 1 1 . 1 . Combat Hostiles . | . . . . . . . . . Follow-up Attacks . | . . . . . . . . . Damage Inflicted 1544 | 217 . . . 836 93 . 398 . Guns 923 | 217 . . . 706 . . . . Cannons . | . . . . . . . . . Explosions 61 | . . . . 61 . . . . Melee 524 | . . . . 69 93 . 362 . Ramming 3 | . . . . . . . 3 . Kinetic 923 | 217 . . . 706 . . . . Thermal 33 | . . . . . . . 33 . Explosive . | . . . . . . . . . Electromagnetic 61 | . . . . 61 . . . . Impact 524 | . . . . 69 93 . 362 . Slashing . | . . . . . . . . . Piercing . | . . . . . . . . . Highest Corruption 4 | . . . . 2 . . 4 4 Average Corruption 2 | . . . . 2 . . 3 4 Corruption Purged . | . . . . . . . . . Corruption Blocked . | . . . . . . . . . Effects 14 | . . . . 8 . . 3 3 Message Errors 3 | . . . . 2 . . 1 . Matter Fused 1 | . . . . . . . 1 . Heat Flow Errors 4 | . . . . 3 . . . 1 Energy Discharges 2 | . . . . 1 . . . 1 Data Loss (minor) 2 | . . . . 2 . . . . Data Loss (major) 2 | . . . . . . . 1 1 Overload Shots . | . . . . . . . . . Overflow Damage 278 | . . . . 69 53 . 156 . Projectiles 11 | . . . . . . . 11 . Explosions . | . . . . . . . . . Melee 267 | . . . . 69 53 . 145 . Knockbacks 2 | . . . . 1 . . 1 . Impact 2 | . . . . 1 . . 1 . Kinetic . | . . . . . . . . . Secondary . | . . . . . . . . . Self-Inflicted Damage 143 | . . . . 142 . . 1 . Shots 4 | . . . . 4 . . . . Rammed 1 | . . . . . . . 1 . Targets Rammed 1 | . . . . . . . 1 . Kicked . | . . . . . . . . . Crushed . | . . . . . . . . . Highest Temperature 241 | . 20 . . 241 . . . 171 Average Temperature 57 | . 10 . . 57 . . . 99 Received Heat Transfer 288 | . . . . 36 . 132 120 . Siege Activations . | . . . . . . . . . Martial Activations . | . . . . . . . . . Shielding Activations . | . . . . . . . . . Robots Disrupted . | . . . . . . . . . Combat Hostiles . | . . . . . . . . . Robots Corrupted 2 | . . . . . . . 2 . Combat Hostiles 2 | . . . . . . . 2 . Parts Fried 6 | . . . . 2 2 . 2 . Impact Corruptions 12 | . . . . 4 2 . 6 . Robots Melted . | . . . . . . . . . Combat Hostiles . | . . . . . . . . . Parts Melted . | . . . . . . . . . Heat Transferred 74 | . . . . . . . 74 . Parts Sabotaged . | . . . . . . . . . Parts Stolen . | . . . . . . . . . Parts Stripped . | . . . . . . . . . Power Chain Reactions 1 | . . . . 1 . . . . Alert | -11 -10 -10 -9 -6 -5 -5 -4 -4 ------- Run | Yrd Mat Sub Scr Fac Fac DSF Fac Upp Maximum Alert Level . | . . . . . . . . . Low Security (%) 100 | 100 100 . . 100 100 100 100 . Level 1 . | . . . . . . . . . Level 2 . | . . . . . . . . . Level 3 . | . . . . . . . . . Level 4 . | . . . . . . . . . Level 5 . | . . . . . . . . . High Security . | . . . . . . . . . Max Security . | . . . . . . . . . Peak Influence 70 | 15 15 . . 55 8 2 70 . Initial 2 | . . . . . . 2 . . Average 9 | 3 . . . 12 . . 16 . Influence Increases 587 | 35 15 . . 326 16 . 195 . Destroy 0b10 Robot/C 220 | . . . . 140 . . 80 . Destroy 0b10 Robot/NC 55 | 35 . . . 15 5 . . . Destroy Leader 20 | . . . . 10 . . 10 . Successful Hack 14 | . . . . 3 11 . . . Select Force Hacks 60 | . . . . 60 . . . . Disable Machine 90 | . 15 . . 60 . . 15 . Destroy Structure 8 | . . . . 8 . . . . Lose Combat Pursuer 120 | . . . . 30 . . 90 . Influence Decreases 587 | 35 15 . . 326 13 3 140 55 Entered New Map 22 | . . . . . . 1 . 21 Time Decay 420 | 35 15 . . 218 13 . 105 34 Lost Part 143 | . . . . 106 . 2 35 . Purge Threat 2 | . . . . 2 . . . . Squads Dispatched 12 | . 1 . . 8 1 . 2 . Investigation 7 | . 1 . . 5 . . 1 . Extermination 2 | . . . . 1 1 . . . Reinforcement 3 | . . . . 2 . . 1 . Assault . | . . . . . . . . . Garrison . | . . . . . . . . . Intercept . | . . . . . . . . . Searches Triggered . | . . . . . . . . . Construction Impeded 1 | . . . . 1 . . . . Haulers Reinforced . | . . . . . . . . . Active Scanning Responses . | . . . . . . . . . Cargo Convoy Interrupts . | . . . . . . . . . Stealth | -11 -10 -10 -9 -6 -5 -5 -4 -4 --------- Run | Yrd Mat Sub Scr Fac Fac DSF Fac Upp Distress Signals . | . . . . . . . . . Communications Jammed . | . . . . . . . . . Distress Signals . | . . . . . . . . . Times Spotted 42 | . 3 1 . 12 . 2 19 5 Peak Tracking Total 9 | . 1 . . 4 . 2 9 7 Tactical Retreats 4 | . . . . 1 . . 3 . Traps | -11 -10 -10 -9 -6 -5 -5 -4 -4 ------- Run | Yrd Mat Sub Scr Fac Fac DSF Fac Upp Traps Triggered 3 | . . . . 2 . 1 . . Indirectly . | . . . . . . . . . Trap Hack Attempts . | . . . . . . . . . Triggered . | . . . . . . . . . Disarmed . | . . . . . . . . . Reprogrammed . | . . . . . . . . . Reused . | . . . . . . . . . Traps Extracted . | . . . . . . . . . Installed . | . . . . . . . . . Triggered . | . . . . . . . . . Machines | -11 -10 -10 -9 -6 -5 -5 -4 -4 ---------- Run | Yrd Mat Sub Scr Fac Fac DSF Fac Upp Machines Disabled 6 | . 1 . . 4 . . 1 . Max in Single Turn 4 | . 1 . . 4 . . 1 . Machines Repaired . | . . . . . . . . . Machines Dismantled 1 | . . . . . . . 1 . Machines Sabotaged . | . . . . . . . . . Overloaded Fab Kills . | . . . . . . . . . Hacking | -11 -10 -10 -9 -6 -5 -5 -4 -4 --------- Run | Yrd Mat Sub Scr Fac Fac DSF Fac Upp Machines Accessed 15 | . . . 3 8 2 . 2 . Terminals 7 | . . . . 4 2 . 1 . Fabricators 2 | . . . . 2 . . . . Repair Stations . | . . . . . . . . . Recycling Units 3 | . . . . 2 . . 1 . Scanalyzers . | . . . . . . . . . Garrison Access . | . . . . . . . . . Total Hacks 33 | . . . 4 22 4 . 3 . Successful 22 | . . . 4 14 3 . 1 . Failed 11 | . . . . 8 1 . 2 . Catastrophic . | . . . . . . . . . Database Lockouts . | . . . . . . . . . Manual 13 | . . . . 8 3 . 2 . Terminals 14 | . . . . 9 4 . 1 . Fabricators 7 | . . . . 7 . . . . Repair Stations . | . . . . . . . . . Recycling Units 8 | . . . . 6 . . 2 . Scanalyzers . | . . . . . . . . . Garrison Access . | . . . . . . . . . Terminal Hacks 10 | . . . 4 3 2 . 1 . Record 3 | . . . 3 . . . . . Open DSF 3 | . . . . 1 1 . 1 . Terminal Index 1 | . . . . . 1 . . . Unreport Threat 2 | . . . . 2 . . . . Proto ID Catalog 1 | . . . 1 . . . . . Fabricator Hacks 2 | . . . . 2 . . . . Network Status 2 | . . . . 2 . . . . Repair Station Hacks . | . . . . . . . . . Recycling Unit Hacks 3 | . . . . 3 . . . . Process 1 | . . . . 1 . . . . Report Inventory 1 | . . . . 1 . . . . Retrieve Components 1 | . . . . 1 . . . . Scanalyzer . | . . . . . . . . . Garrison Access Hacks . | . . . . . . . . . Unauthorized Hacks 7 | . . . . 6 1 . . . Terminals 1 | . . . . . 1 . . . Botnet 1 | . . . . . 1 . . . Fabricators 3 | . . . . 3 . . . . Report 1 | . . . . 1 . . . . Liberate 1 | . . . . 1 . . . . Fabnet 1 | . . . . 1 . . . . Repair Stations . | . . . . . . . . . Recycling Units 3 | . . . . 3 . . . . Recyclers 1 | . . . . 1 . . . . Tunnel 2 | . . . . 2 . . . . Scanalyzers . | . . . . . . . . . Garrison Access . | . . . . . . . . . Data Cores Recovered . | . . . . . . . . . Used . | . . . . . . . . . Hacking Detections 8 | . . . . 6 1 . 1 . Full Trace Events 4 | . . . . 3 . . 1 . Feedback Events . | . . . . . . . . . Feedback Blocked . | . . . . . . . . . Robot Schematics Acquired . | . . . . . . . . . Robots Built . | . . . . . . . . . Authchips . | . . . . . . . . . Time . | . . . . . . . . . Total Robot Build Rating . | . . . . . . . . . Part Schematics Acquired . | . . . . . . . . . Parts Built . | . . . . . . . . . Authchips . | . . . . . . . . . Time . | . . . . . . . . . Total Part Build Rating . | . . . . . . . . . Part Studies Acquired . | . . . . . . . . . Parts Repaired . | . . . . . . . . . Time . | . . . . . . . . . Parts Recycled . | . . . . . . . . . Recycled Matter . | . . . . . . . . . Retrieved Matter . | . . . . . . . . . Retrieved Components 3 | . . . . 3 . . . . Parts Scanalyzed . | . . . . . . . . . Part Schematics Acquired . | . . . . . . . . . Parts Damaged . | . . . . . . . . . Bothacking | -11 -10 -10 -9 -6 -5 -5 -4 -4 ------------ Run | Yrd Mat Sub Scr Fac Fac DSF Fac Upp Used RIF Installer . | . . . . . . . . . Robots Hacked . | . . . . . . . . . Non-combat . | . . . . . . . . . Combat . | . . . . . . . . . Robot Hacks Applied . | . . . . . . . . . Relay Couplers Released . | . . . . . . . . . Fabnet Peak Effective % 3 | . . . . . 3 3 1 1 Robots Rewired . | . . . . . . . . . Allies Hacked . | . . . . . . . . . Hacks Repelled . | . . . . . . . . . Allies | -11 -10 -10 -9 -6 -5 -5 -4 -4 -------- Run | Yrd Mat Sub Scr Fac Fac DSF Fac Upp Total Allies . | . . . . . . . . . Largest Group . | . . . . . . . . . Highest-Rated Group . | . . . . . . . . . Highest-Rated Ally . | . . . . . . . . . Initial UFD Resources 29 | . . . . 23 27 27 29 29 Total Orders . | . . . . . . . . . Ally Attacks . | . . . . . . . . . Total Damage . | . . . . . . . . . Kills . | . . . . . . . . . Allies Corrupted . | . . . . . . . . . Allies Melted . | . . . . . . . . . Intel | -11 -10 -10 -9 -6 -5 -5 -4 -4 ------- Run | Yrd Mat Sub Scr Fac Fac DSF Fac Upp Active Infowar (turns) 4444 | 58 231 253 2294 877 299 16 273 143 Optics 413 | . . . . . . . 270 143 Sensors 1103 | . . . . 605 299 16 183 . Terrain 149 | . . . . 149 . . . . Structural 337 | . . . . 337 . . . . Seismic 2960 | 58 231 253 2294 124 . . . . ECM 150 | . . . . . 134 16 . . Robot Analysis Total . | . . . . . . . . . Derelict Logs Recovered 1 | . . . . . . . . 1 Drone Launches . | . . . . . . . . . Drone Recoveries . | . . . . . . . . . Exploration | -11 -10 -10 -9 -6 -5 -5 -4 -4 ------------- Run | Yrd Mat Sub Scr Fac Fac DSF Fac Upp Turns Passed 4755 | 166 231 253 2294 928 299 48 393 143 Spaces Moved 3063 | 85 160 125 1195 475 185 58 435 345 Core 379 | 3 . . . 21 . 48 307 . Treads . | . . . . . . . . . Legs 1776 | 82 160 125 1195 19 185 10 . . Wheels 435 | . . . . 435 . . . . Hover 473 | . . . . . . . 128 345 Flight . | . . . . . . . . . Fastest Speed 40 | 50 120 190 190 80 120 50 40 40 Average Speed 137 | 117 127 190 190 131 155 62 72 40 Slowest Speed 750 | 120 190 190 190 750 190 120 300 40 Overloaded Moves . | . . . . . . . . . Propulsion Burnouts . | . . . . . . . . . Robots Hopped . | . . . . . . . . . Potential Cave-ins . | . . . . . . . . . Cave-ins Triggered . | . . . . . . . . . Exploration Rate (%) 35 | 4 39 14 87 14 6 79 14 60 Regions Visited 8 Branch Regions 3 Pre-discovered Areas 2 | . . . . 2 . . . . Known Exits Taken 3 | . . . . 1 1 . 1 . Unknown Exits Taken 4 | 1 1 1 1 . . . . . Scrap Searched 12 | . . 3 8 . . . . 1 Spaces Dug 8 | . . . . 8 . . . . Terrain Destroyed 8 | . . . . 8 . . . . Melee 8 | . . . . 8 . . . . Projectile . | . . . . . . . . . AOE . | . . . . . . . . . Terrain Rammed . | . . . . . . . . . Walls Destroyed . | . . . . . . . . . Machines Disabled . | . . . . . . . . . Actions | -11 -10 -10 -9 -6 -5 -5 -4 -4 --------- Run | Yrd Mat Sub Scr Fac Fac DSF Fac Upp Total 3465 | 117 182 141 1225 702 194 73 482 349 Wait 200 | 5 11 16 3 147 3 . 15 . Move 3055 | 84 159 124 1194 474 184 57 434 345 Hop . | . . . . . . . . . Pick Up 37 | 6 4 1 14 3 2 2 2 3 Fast Attach 30 | 7 . . 2 8 4 3 5 1 Attach 17 | . . . . 12 . . 5 . Detach 3 | . . . . . . 3 . . Swap 11 | . 3 . 1 7 . . . . Drop 25 | . 3 . 11 2 . 8 1 . Fire 48 | 15 2 . . 29 . . 2 . Melee 23 | . . . . 13 1 . 9 . Ram 1 | . . . . . . . 1 . Kick . | . . . . . . . . . Crush . | . . . . . . . . . Escape Stasis 7 | . . . . 7 . . . . Rewire . | . . . . . . . . . Trap . | . . . . . . . . . Miscellaneous 8 | . . . . . . . 8 . Route ------- -11/Scrapyard -10/Materials (discovered 3 exits: [*Mat x2] / [*Sub]) -10/Subcaves -9/Scraptown (discovered 2 exits: *Fac x2) -6/Factory (discovered 2 exits: *Fac / [*Low]) -5/Factory -5/DSF -4/Factory -4/Upper Caves History --------- Turn | Location | Event 7 | -11/Scrapyard | Discovered new exit (range 14) 167 | -11/Scrapyard | Entered Materials 168 | -10/Materials | Met a group of wandering Federalists 235 | -10/Materials | Discovered new exit (range 13) 337 | -10/Materials | Build established: Mutant 354 | -10/Materials | Discovered new exit (range 4) 388 | -10/Materials | Discovered new exit (range 6) 398 | -10/Materials | Entered Subcaves 399 | -10/Subcaves | Continued accompanying wandering Federalists (4) 399 | -10/Subcaves | Approached by a straggling Scientist 609 | -10/Subcaves | Wandering Federalist uncovered a shortcut to Scraptown 651 | -10/Subcaves | Entered Scraptown 1006 | -9/Scraptown | Heard Great Nut preacher, LISTEN AND RECITE! 1312 | -9/Scraptown | Visited Cave Peace 1378 | -9/Scraptown | Visited Symbiants 1429 | -9/Scraptown | Visited Comm Corps 1484 | -9/Scraptown | Visited Cyclists 1503 | -9/Scraptown | Visited Bundlers 1715 | -9/Scraptown | Discovered new exit (range 5) 1928 | -9/Scraptown | Visited SPCMW 1958 | -9/Scraptown | Visited UFD Registry 1987 | -9/Scraptown | Registered with UFD as "Novabox" 2057 | -9/Scraptown | Visited Research Penetration Think Tank 2103 | -9/Scraptown | Visited Scrapoid Pod Storage 2180 | -9/Scraptown | Visited Junk Repository 2237 | -9/Scraptown | Visited Scrap Suit Storage 2262 | -9/Scraptown | Visited Junk Repository 2520 | -9/Scraptown | Visited Science Guys 2583 | -9/Scraptown | Visited Observation Area 2661 | -9/Scraptown | Visited Supply Room 2834 | -9/Scraptown | Met Optimus 2834 | -9/Scraptown | Accepted into 0bPrime 2934 | -9/Scraptown | Discovered new exit (range 5) 2945 | -9/Scraptown | Entered Factory 2945 | -6/Factory | Evolved 8 slots: Power x1, Propulsion x2, Utility x5 2979 | -6/Factory | Identified exit to DSF 3127 | -6/Factory | Lost 5 parts (2n1u2w) 3331 | -6/Factory | Lost 3 parts (1p1n1u) 3554 | -6/Factory | Discovered new exit (range 9) 3681 | -6/Factory | Build established: Hacker-Assassin 3805 | -6/Factory | Lost 7 parts (2n3u2w) 3858 | -6/Factory | Discovered new exit (range 15) 3872 | -6/Factory | Identified exit to Factory 3873 | -6/Factory | Entered another Factory area 3873 | -5/Factory | Evolved 2 slots: Utility x2 4059 | -5/Factory | Build established: Mutant 4171 | -5/Factory | Identified exit to DSF 4172 | -5/Factory | Entered DSF 4211 | -5/DSF | Additional patrols routed to DSF 4213 | -5/DSF | Discovered new exit (range 15) 4214 | -5/DSF | Core integrity fell below 50% 4220 | -5/DSF | Identified exit to Factory 4220 | -5/DSF | Entered Factory 4220 | -4/Factory | Evolved 2 slots: Power x1, Propulsion x1 4354 | -4/Factory | Lost 4 parts (4u) 4548 | -4/Factory | Core integrity fell below 50% 4578 | -4/Factory | Lost 8 parts (1p1n4u2w) 4595 | -4/Factory | Core integrity fell below 20% 4602 | -4/Factory | Discovered new exit (range 20) 4611 | -4/Factory | Identified exit to Upper Caves 4613 | -4/Factory | Entered Upper Caves 4675 | -4/Upper Caves | Learned 4 Research zone layouts 4719 | -4/Upper Caves | Spotted B-86 Titan 4747 | -4/Upper Caves | Attracted the attention of an 0b10 outpost 4756 | -4/Upper Caves | Destroyed by B-86 Titan with Railgun Last Messages --------------- Data stored: Research zone layouts (x4). 04688_ Searching scrap... 04688_ Found Mak. Hacking Suite. 04688_ Found Adv. Drone Bay. 04688_ Found Mak. Leg. 04688_ Found Jamming Amplifier. 04688_ Found 47 Matter. 04689_ Acquired 47 matter. 04689_ Acquired Mak. Hacking Suite. 04691_ Acquired Adv. Drone Bay. 04692_ Acquired Mak. Leg. 04694_ Acquired Jamming Amplifier. 04706_ System corrupted: Energy discharge (-30). 04746_ System corrupted: Substantial component data lost. 04747_ Y-72 Warden: "DETECTED UNIDENTIFIED DERELICT." 04748_ Penetrated by Slug. 04748_ Slug penetrates Wall. 04751_ Y-72 Warden: "REQUESTING BACKUP." Map ----- +----------------------------------------------------+ | ???????????????????????????????## # # #?? | | ???????????????????????????????# # # # ##?? | | ???????????????????????????????# ## #??? | | ???????????????????????????????# # #??? | | ???????????????????????????????## ###### #??? | | ???????????????????????????????## ## ## #??# | | ?????????????????????????????### # ### | | ??????????????????#######???## # # | | ?????????????????? #### # | | ?????????????? ## ### ##### | | ??????????????????# #### #?## #??# | | ??????????????????# ##??# ##### | | ??????????????????# BB ##### ### | | ??????????????????# BB #### ## | | ??????????????????# ???# | | ??????????????????# #???# ## #### # | | ??????????????????## # ; #???# #####??# ## | | ??????????????????# #???######??????## #? | | ??????????????????# #???????????????# # ##? | | ??????????????????#? #???????????????# ## | | ????????????????????# #???????????????#### | | ????????????????????# ##?????????????????## | | ?????????????????????# ####???????????????## | | ?????????????????????# ###???????????###?# | | ??????????????????????# ##?????????? ?? | | ???????????????????????#;@ #?#???????? ??? | | ???????????????????????### ### ##? ???????? ??? | | ?????????????????????????## ##????# ##?????? ??? | | ??????????????????????????## #???## # ????# ??? | | ???????????????????????????# #???# #? ????# #??? | | ?????????????????? ???????## ##??? #?? ???# #?## | | ??????????????????# ????## ##?? #?? #### ### | | ??????????????????# ### #?? #???/ # ## | | ??????????????????# ##?# #???# ## | | ????????????????### ### ##### ## | | ??????????? ## ### | | ??????????? ##? #### | | ??????????? ####" #?# | | ??????????? ### | | ??????????? ## | | ??????????? #### ## | | ????????????## ##??## ### ## | | ?????????????# ## ########????## ##?## ### | | ?????????????#??#######?????????????###???#"####?# | | ?????????????????????????????????????????? ##????? | | ??????????????????????????????????????????#??????? | | ?????????????????????????????????????????????????? | | ?????????????????????????????????????????????????? | | ?????????????????????????????????????????????????? | | ?????????????????????????????????????????????????? | +----------------------------------------------------+ Best States ------------- Heat Dissipation 66 Energy Generation 29 Energy Capacity 490 Matter Stores 300 Matter Capacity 300 Sight Range 22 Robot Scan Range 14 Terrain Scan Range 16 Terrain Scan Density 10 ECM Strength 1 Evasion (%) 57 Targeting Accuracy 8 Force Boost 30 Offensive Hacking 48 Authchip Count 3 Item Schematics ----------------- None Robot Schematics ------------------ None Fabricated ------------ Nothing Repaired ---------- Nothing Studied --------- None Alien Tech Used ----------------- None Achievements -------------- None Challenges ------------ None Game ------ Seed IonicBlanketWartreads Manual? 0 Play Time 00:36:45 Cumulative 171.1 hours Start 2026.04.12 @ 22:20:24 End 2026.04.13 @ 09:21:17 Sessions 3 Manual Loads 0 Difficulty Rogue Special Mode None Game No. 244 Rogue 244 Adventurer 0 Explorer 0 Win Type - Total 2 Types 1/0/0/1/0/0/0/0/0/0 Lore% 71 Gallery% 59 Achievement% 45 Wizard Run 0 Options --------- Layout 2 ASCII 0 Keyboard 0 Movement Mouse Keybinds 0 Fullscreen 1 Font 24/Smallcaps Map View 50x44 Zoom Use 0% Tactical HUD 1 Map Filters NONE Filters NONE Steam 1 RUN: b9ddedd9-a6d9-4a29-99b2-02bc6a1b5eca